[Event "Szansa Chess Open 2022"]
[Site "Warsaw"]
[Date "2022.09.18"]
[Round "10.1"]
[White "Gumularz, Szymon"]
[Black "Psyk, Radoslaw"]
[Result "1-0"]
[ECO "A06"]
[WhiteElo "2532"]
[BlackElo "2404"]
[Annotator "ChessBase"]
[PlyCount "65"]
[EventDate "2022.09.17"]
[EventCountry "POL"]
[SourceTitle "playchess.com"]
[Source "ChessBase"]
[SourceQuality "1"]
[TimeControl "900+10"]

1. Nf3 {[%emt 0:00:05]} d5 {[%emt 0:00:04]} 2. e3 {[%emt 0:00:02]} c5 {[%emt 0:00:20]} 3. b3 {[%emt 0:00:02]} Nc6 {[%emt 0:00:02]} 4. Bb2 {[%emt 0:00:02]} Nf6 {[%emt 0:00:15]} 5. Bb5 {[%emt 0:00:02]} Bd7 {[%emt 0:00:10]} 6. c4 {[%emt 0:00:03]} e6 {[%emt 0:00:42]} 7. cxd5 {[%emt 0:00:03]} exd5 {[%emt 0:00:31]} 8. O-O {[%emt 0:00:04]} Be7 {[%emt 0:00:11]} 9. d4 {[%emt 0:00:03]} cxd4 {[%emt 0:00:56]} 10. Nxd4 {[%emt 0:00:02]} O-O {[%emt 0:00:03]} 11. Nc3 {[%emt 0:00:12]} Bg4 {[%emt 0:01:26]} 12. Be2 {[%emt 0:00:03]} Bxe2 {[%emt 0:00:08]} 13. Ncxe2 {[%emt 0:00:02]} Qd7 {[%emt 0:00:36]} 14. Rc1 {[%emt 0:00:11]} Rac8 {[%emt 0:00:15]} 15. Qd3 {[%emt 0:00:03]} Nb4 {[%emt 0:02:47]} 16. Qb1 {[%emt 0:00:04]} Ne4 {[%emt 0:00:25]} 17. Rcd1 {[%emt 0:00:06]} Rfd8 {[%emt 0:00:50]} 18. Nf4 {[%emt 0:00:15]} Bf6 {[%emt 0:00:56]} 19. a3 {[%emt 0:00:19]} Nc6 {[%emt 0:00:04]} 20. Nf3 {[%emt 0:00:11]} Bxb2 {[%emt 0:01:15]} 21. Qxb2 {[%emt 0:00:00]} Qf5 {[%emt 0:00:07]} 22. h3 {[%emt 0:00:05]} Ne7 {[%emt 0:00:26]} 23. Rc1 {[%emt 0:00:22]} Rxc1 {[%emt 0:00:21]} 24. Rxc1 {[%emt 0:00:01]} Rc8 {[%emt 0:00:09]} 25. Rxc8+ {[%emt 0:00:22]} Qxc8 {[%emt 0:00:02]} 26. Qe5 {[%emt 0:00:07]} Qd8 {[%emt 0:00:37]} 27. Nxd5 {[%emt 0:00:10]} Nxd5 {[%emt 0:00:36]} 28. Qxe4 {[%emt 0:00:01]} g6 {[%emt 0:00:52]} 29. Qd4 {[%emt 0:00:02]} Qa5 {[%emt 0:00:35]} 30. b4 {[%emt 0:00:02]} Qb5 {[%emt 0:00:10]} 31. Qxa7 {[%emt 0:00:02]} Qd3 {[%emt 0:02:01]} 32. Qxb7 {[%emt 0:00:07]} Nc3 {[%emt 0:00:02]} 33. Qxf7+ {[%emt 0:00:34]} 1-0

[Event "Szansa Chess Open 2022"]
[Site "Warsaw"]
[Date "2022.09.18"]
[Round "10.2"]
[White "Kosakowski, Jakub"]
[Black "Jakubowski, Krzysztof"]
[Result "1-0"]
[ECO "B48"]
[WhiteElo "2457"]
[BlackElo "2466"]
[Annotator "ChessBase"]
[PlyCount "101"]
[EventDate "2022.09.17"]
[EventCountry "POL"]
[SourceTitle "playchess.com"]
[Source "ChessBase"]
[SourceQuality "1"]
[TimeControl "900+10"]

1. e4 {[%emt 0:00:04]} c5 {[%emt 0:00:02]} 2. Nf3 {[%emt 0:00:03]} e6 {[%emt 0:00:02]} 3. d4 {[%emt 0:00:04]} cxd4 {[%emt 0:00:03]} 4. Nxd4 {[%emt 0:00:02]} Nc6 {[%emt 0:00:02]} 5. Nc3 {[%emt 0:00:03]} Qc7 {[%emt 0:00:02]} 6. Be3 {[%emt 0:00:06]} a6 {[%emt 0:00:02]} 7. Qf3 {[%emt 0:00:03]} Nf6 {[%emt 0:00:16]} 8. O-O-O {[%emt 0:00:04]} Ne5 {[%emt 0:00:04]} 9. Qg3 {[%emt 0:00:04]} b5 {[%emt 0:00:02]} 10. a3 {[%emt 0:00:09]} Bb7 {[%emt 0:03:43]} 11. Bxb5 {[%emt 0:00:03]} Rc8 {[%emt 0:00:02]} 12. Ba4 {[%emt 0:00:08]} Nxe4 {[%emt 0:00:17]} 13. Nxe4 {[%emt 0:00:02]} Bxe4 {[%emt 0:00:02]} 14. Bf4 {[%emt 0:00:02]} Qc4 {[%emt 0:01:07]} 15. Bb3 {[%emt 0:01:07]} Nd3+ {[%emt 0:00:26]} 16. Kb1 {[%emt 0:00:03]} Qxd4 {[%emt 0:00:09]} 17. cxd3 {[%emt 0:00:03]} Bg6 {[%emt 0:01:13]} 18. Rc1 {[%emt 0:00:15]} Rc6 {[%emt 0:01:37]} 19. Rxc6 {[%emt 0:02:26]} dxc6 {[%emt 0:00:06]} 20. Rd1 {[%emt 0:04:42]} Be7 {[%emt 0:01:00]} 21. Be5 {[%emt 0:00:09]} Qb6 {[%emt 0:00:03]} 22. Ka2 {[%emt 0:00:05]} O-O {[%emt 0:00:25]} 23. h4 {[%emt 0:00:22]} h5 {[%emt 0:02:29]} 24. Bxe6 {[%emt 0:00:36]} Kh7 {[%emt 0:00:14]} 25. Bc4 {[%emt 0:00:30]} Qd8 {[%emt 0:00:19]} 26. Qf3 {[%emt 0:00:33]} Bxh4 {[%emt 0:00:22]} 27. g4 {[%emt 0:01:36]} Qg5 {[%emt 0:01:02]} 28. Bf4 {[%emt 0:00:58]} Qf6 {[%emt 0:00:29]} 29. gxh5 {[%emt 0:00:14]} Bf5 {[%emt 0:00:02]} 30. Bd2 {[%emt 0:00:18]} Be6 {[%emt 0:00:46]} 31. Qe4+ {[%emt 0:00:08]} Bf5 {[%emt 0:00:05]} 32. Qg2 {[%emt 0:00:02]} Qd6 {[%emt 0:01:07]} 33. Qf3 {[%emt 0:01:33]} Qd7 {[%emt 0:00:01]} 34. Bc3 {[%emt 0:00:13]} Bg4 {[%emt 0:00:46]} 35. Qg2 {[%emt 0:00:04]} f6 {[%emt 0:00:11]} 36. Rg1 {[%emt 0:00:22]} Bf5 {[%emt 0:00:22]} 37. f4 {[%emt 0:00:06]} Qa7 {[%emt 0:00:56]} 38. Bd4 {[%emt 0:02:04]} Qc7 {[%emt 0:00:19]} 39. Qh2 {[%emt 0:00:29]} Bg5 {[%emt 0:00:10]} 40. Rf1 {[%emt 0:00:44]} Bh6 {[%emt 0:00:27]} 41. Bc3 {[%emt 0:00:05]} a5 {[%emt 0:00:15]} 42. Qf2 {[%emt 0:00:12]} Re8 {[%emt 0:00:10]} 43. Qc5 {[%emt 0:00:07]} Qd7 {[%emt 0:00:17]} 44. d4 {[%emt 0:00:44]} a4 {[%emt 0:00:20]} 45. d5 {[%emt 0:00:35]} cxd5 {[%emt 0:00:19]} 46. Bb5 {[%emt 0:00:06]} Qe6 {[%emt 0:00:15]} 47. Bxe8 {[%emt 0:00:07]} d4+ {[%emt 0:00:11]} 48. Ka1 {[%emt 0:00:05]} dxc3 {[%emt 0:00:01]} 49. Bg6+ {[%emt 0:00:08]} Kg8 {[%emt 0:00:28]} 50. Bxf5 {[%emt 0:00:10]} Qe2 {[%emt 0:00:08]} 51. Qc8+ {[%emt 0:00:02]} 1-0

[Event "Szansa Chess Open 2022"]
[Site "Warsaw"]
[Date "2022.09.18"]
[Round "10.3"]
[White "Kozak, Antoni"]
[Black "Nasuta, Grzegorz"]
[Result "0-1"]
[ECO "A06"]
[WhiteElo "2434"]
[BlackElo "2531"]
[Annotator "ChessBase"]
[PlyCount "62"]
[EventDate "2022.09.17"]
[EventCountry "POL"]
[SourceTitle "playchess.com"]
[Source "ChessBase"]
[SourceQuality "1"]
[TimeControl "900+10"]

1. Nf3 {[%emt 0:00:01]} d5 {[%emt 0:00:01]} 2. e3 {[%emt 0:00:01]} Nf6 {[%emt 0:00:04]} 3. c4 {[%emt 0:00:01]} c6 {[%emt 0:00:01]} 4. Nc3 {[%emt 0:00:01]} e6 {[%emt 0:00:01]} 5. b3 {[%emt 0:00:01]} Bd6 {[%emt 0:00:05]} 6. Bb2 {[%emt 0:00:01]} O-O {[%emt 0:00:06]} 7. Be2 {[%emt 0:00:01]} b6 {[%emt 0:00:02]} 8. Qc2 {[%emt 0:00:17]} Bb7 {[%emt 0:00:12]} 9. Rg1 {[%emt 0:00:40]} Na6 {[%emt 0:00:40]} 10. g4 {[%emt 0:00:11]} e5 {[%emt 0:00:02]} 11. g5 {[%emt 0:00:22]} Nd7 {[%emt 0:00:03]} 12. d3 {[%emt 0:02:19]} f5 {[%emt 0:02:49]} 13. gxf6 {[%emt 0:00:02]} Rxf6 {[%emt 0:00:01]} 14. O-O-O {[%emt 0:00:37]} Qe7 {[%emt 0:00:03]} 15. Rdf1 {[%emt 0:02:48]} Raf8 {[%emt 0:00:07]} 16. Qd1 {[%emt 0:00:04]} Ba3 {[%emt 0:04:08]} 17. Rg2 {[%emt 0:00:14]} Bxb2+ {[%emt 0:00:38]} 18. Kxb2 {[%emt 0:00:02]} Nac5 {[%emt 0:00:15]} 19. cxd5 {[%emt 0:02:32]} cxd5 {[%emt 0:00:55]} 20. d4 {[%emt 0:00:01]} Ne4 {[%emt 0:02:30]} 21. Nxd5 {[%emt 0:01:32]} Bxd5 {[%emt 0:00:02]} 22. dxe5 {[%emt 0:00:01]} Nc3 {[%emt 0:00:01]} 23. Kxc3 {[%emt 0:00:53]} Bxf3 {[%emt 0:02:07]} 24. Rxg7+ {[%emt 0:00:11]} Kxg7 {[%emt 0:00:06]} 25. exf6+ {[%emt 0:00:06]} Qxf6+ {[%emt 0:00:03]} 26. Kb4 {[%emt 0:00:18]} Qe7+ {[%emt 0:00:57]} 27. Kc3 {[%emt 0:00:02]} Qe5+ {[%emt 0:00:04]} 28. Kd2 {[%emt 0:00:10]} Qa5+ {[%emt 0:01:15]} 29. Kc2 {[%emt 0:00:02]} Qxa2+ {[%emt 0:00:07]} 30. Kc3 {[%emt 0:00:01]} Rc8+ {[%emt 0:00:11]} 31. Kd4 {[%emt 0:00:01]} Qb2+ {[%emt 0:00:11]} 0-1

[Event "Szansa Chess Open 2022"]
[Site "Warsaw"]
[Date "2022.09.18"]
[Round "10.4"]
[White "Lewicki, Miroslaw"]
[Black "Nguyen, Piotr"]
[Result "0-1"]
[ECO "B06"]
[WhiteElo "2336"]
[BlackElo "2421"]
[Annotator "ChessBase"]
[PlyCount "90"]
[EventDate "2022.09.17"]
[EventCountry "POL"]
[SourceTitle "playchess.com"]
[Source "ChessBase"]
[SourceQuality "1"]
[TimeControl "900+10"]

1. e4 {[%emt 0:00:01]} g6 {[%emt 0:00:01]} 2. d4 {[%emt 0:00:02]} Bg7 {[%emt 0:00:02]} 3. Nf3 {[%emt 0:00:03]} d6 {[%emt 0:00:02]} 4. Be2 {[%emt 0:00:07]} Nf6 {[%emt 0:00:03]} 5. Qd3 {[%emt 0:00:18]} O-O {[%emt 0:00:05]} 6. O-O {[%emt 0:00:30]} Nc6 {[%emt 0:00:03]} 7. c4 {[%emt 0:00:28]} e5 {[%emt 0:00:34]} 8. Nc3 {[%emt 0:00:23]} Nd7 {[%emt 0:04:16]} 9. Be3 {[%emt 0:00:27]} f5 {[%emt 0:00:15]} 10. Bg5 {[%emt 0:00:37]} Bf6 {[%emt 0:01:11]} 11. Bxf6 {[%emt 0:01:34]} Nxf6 {[%emt 0:00:03]} 12. exf5 {[%emt 0:01:24]} gxf5 {[%emt 0:00:36]} 13. dxe5 {[%emt 0:00:05]} dxe5 {[%emt 0:00:04]} 14. Qxd8 {[%emt 0:00:13]} Rxd8 {[%emt 0:00:06]} 15. Rad1 {[%emt 0:01:10]} Be6 {[%emt 0:00:47]} 16. Ng5 {[%emt 0:00:58]} Bf7 {[%emt 0:00:02]} 17. Nxf7 {[%emt 0:01:11]} Kxf7 {[%emt 0:00:02]} 18. c5 {[%emt 0:00:04]} Nd4 {[%emt 0:01:51]} 19. Bc4+ {[%emt 0:00:03]} Kg6 {[%emt 0:00:02]} 20. Rfe1 {[%emt 0:00:48]} e4 {[%emt 0:00:17]} 21. h3 {[%emt 0:01:47]} b6 {[%emt 0:00:29]} 22. cxb6 {[%emt 0:01:19]} axb6 {[%emt 0:00:15]} 23. Nd5 {[%emt 0:01:44]} Nxd5 {[%emt 0:00:51]} 24. Rxd4 {[%emt 0:00:03]} Nb4 {[%emt 0:00:04]} 25. Red1 {[%emt 0:00:45]} Rxd4 {[%emt 0:01:30]} 26. Rxd4 {[%emt 0:00:01]} Nxa2 {[%emt 0:00:02]} 27. Rd7 {[%emt 0:00:07]} Ra7 {[%emt 0:00:07]} 28. Bf7+ {[%emt 0:00:46]} Kf6 {[%emt 0:00:31]} 29. Bg8 {[%emt 0:00:27]} h5 {[%emt 0:00:46]} 30. Bf7 {[%emt 0:01:11]} h4 {[%emt 0:00:08]} 31. Bc4 {[%emt 0:00:06]} Nb4 {[%emt 0:00:09]} 32. Rh7 {[%emt 0:00:09]} Nd3 {[%emt 0:00:53]} 33. Rxh4 {[%emt 0:00:18]} Ra1+ {[%emt 0:00:25]} 34. Kh2 {[%emt 0:00:02]} Nxb2 {[%emt 0:00:02]} 35. Bb5 {[%emt 0:00:10]} Ra5 {[%emt 0:01:31]} 36. Be2 {[%emt 0:00:54]} Ra2 {[%emt 0:00:18]} 37. f3 {[%emt 0:00:24]} Nd3 {[%emt 0:00:22]} 38. Bf1 {[%emt 0:00:01]} Ne5 {[%emt 0:01:02]} 39. Kg3 {[%emt 0:00:02]} e3 {[%emt 0:00:05]} 40. Bb5 {[%emt 0:00:32]} Rb2 {[%emt 0:00:46]} 41. Ba6 {[%emt 0:00:30]} b5 {[%emt 0:00:11]} 42. Rh6+ {[%emt 0:00:02]} Ng6 {[%emt 0:00:02]} 43. f4 {[%emt 0:00:16]} Kg7 {[%emt 0:00:37]} 44. Rh5 {[%emt 0:00:08]} e2 {[%emt 0:00:02]} 45. Kf2 {[%emt 0:00:10]} Nxf4 {[%emt 0:00:01]} 0-1

[Event "Szansa Chess Open 2022"]
[Site "Warsaw"]
[Date "2022.09.18"]
[Round "10.5"]
[White "Kowalski, Igor"]
[Black "Czarnecka, Lidia"]
[Result "1/2-1/2"]
[ECO "D45"]
[WhiteElo "2344"]
[BlackElo "1957"]
[Annotator "ChessBase"]
[PlyCount "49"]
[EventDate "2022.09.17"]
[EventCountry "POL"]
[SourceTitle "playchess.com"]
[Source "ChessBase"]
[SourceQuality "1"]
[TimeControl "900+10"]

1. d4 {[%emt 0:00:01]} d5 {[%emt 0:00:01]} 2. c4 {[%emt 0:00:01]} c6 {[%emt 0:00:00]} 3. Nc3 {[%emt 0:00:03]} Nf6 {[%emt 0:00:04]} 4. e3 {[%emt 0:00:01]} e6 {[%emt 0:00:36]} 5. Nf3 {[%emt 0:00:02]} Be7 {[%emt 0:00:19]} 6. Bd3 {[%emt 0:00:08]} dxc4 {[%emt 0:00:12]} 7. Bxc4 {[%emt 0:00:01]} b5 {[%emt 0:00:01]} 8. Bd3 {[%emt 0:00:01]} a6 {[%emt 0:00:14]} 9. e4 {[%emt 0:00:04]} c5 {[%emt 0:00:24]} 10. e5 {[%emt 0:00:25]} Nd5 {[%emt 0:00:29]} 11. Ne4 {[%emt 0:00:09]} cxd4 {[%emt 0:00:17]} 12. O-O {[%emt 0:00:25]} O-O {[%emt 0:01:22]} 13. a4 {[%emt 0:00:02]} b4 {[%emt 0:00:23]} 14. Nxd4 {[%emt 0:00:08]} Bb7 {[%emt 0:00:04]} 15. Qh5 {[%emt 0:00:27]} g6 {[%emt 0:01:37]} 16. Qh6 {[%emt 0:00:03]} Nd7 {[%emt 0:00:25]} 17. Ng5 {[%emt 0:01:02]} Bxg5 {[%emt 0:00:32]} 18. Bxg5 {[%emt 0:00:02]} Qc7 {[%emt 0:00:35]} 19. Rfe1 {[%emt 0:01:59]} Nxe5 {[%emt 0:00:49]} 20. Be4 {[%emt 0:00:38]} Nd7 {[%emt 0:01:40]} 21. Bxd5 {[%emt 0:07:39]} Bxd5 {[%emt 0:00:20]} 22. Re3 {[%emt 0:00:01]} f6 {[%emt 0:02:22]} 23. Nxe6 {[%emt 0:01:44]} Bxe6 {[%emt 0:00:12]} 24. Rxe6 {[%emt 0:00:01]} fxg5 {[%emt 0:01:47]} 25. Rxg6+ {[%emt 0:02:06]} 1/2-1/2

[Event "Szansa Chess Open 2022"]
[Site "Warsaw"]
[Date "2022.09.18"]
[Round "10.6"]
[White "Siekanska, Maria"]
[Black "Lewtak, Damian"]
[Result "0-1"]
[ECO "A40"]
[WhiteElo "2029"]
[BlackElo "2386"]
[Annotator "ChessBase"]
[PlyCount "102"]
[EventDate "2022.09.17"]
[EventCountry "POL"]
[SourceTitle "playchess.com"]
[Source "ChessBase"]
[SourceQuality "1"]
[TimeControl "900+10"]

1. d4 {[%emt 0:00:02]} g6 {[%emt 0:00:08]} 2. c4 {[%emt 0:00:02]} Bg7 {[%emt 0:00:02]} 3. Nf3 {[%emt 0:00:18]} d6 {[%emt 0:00:02]} 4. e4 {[%emt 0:00:19]} e5 {[%emt 0:00:02]} 5. Nc3 {[%emt 0:00:11]} exd4 {[%emt 0:00:20]} 6. Nxd4 {[%emt 0:00:09]} Ne7 {[%emt 0:00:04]} 7. Be2 {[%emt 0:00:17]} Nbc6 {[%emt 0:00:03]} 8. Nxc6 {[%emt 0:00:32]} Nxc6 {[%emt 0:00:13]} 9. O-O {[%emt 0:00:11]} O-O {[%emt 0:00:29]} 10. Be3 {[%emt 0:00:24]} Bxc3 {[%emt 0:00:12]} 11. bxc3 {[%emt 0:00:03]} Re8 {[%emt 0:00:05]} 12. Qc2 {[%emt 0:01:23]} Qe7 {[%emt 0:00:21]} 13. f3 {[%emt 0:01:20]} f5 {[%emt 0:00:21]} 14. Rae1 {[%emt 0:01:09]} fxe4 {[%emt 0:00:19]} 15. fxe4 {[%emt 0:00:02]} Be6 {[%emt 0:01:05]} 16. Bh6 {[%emt 0:01:53]} Ne5 {[%emt 0:00:07]} 17. Qb3 {[%emt 0:00:44]} b6 {[%emt 0:00:05]} 18. Bf4 {[%emt 0:00:51]} Bf7 {[%emt 0:02:08]} 19. Bxe5 {[%emt 0:01:40]} Qxe5 {[%emt 0:00:25]} 20. Bd3 {[%emt 0:00:30]} Be6 {[%emt 0:00:16]} 21. Rf3 {[%emt 0:01:31]} Rf8 {[%emt 0:00:10]} 22. Ref1 {[%emt 0:00:06]} Rxf3 {[%emt 0:00:18]} 23. Rxf3 {[%emt 0:00:07]} Kg7 {[%emt 0:00:14]} 24. a4 {[%emt 0:00:38]} a5 {[%emt 0:00:02]} 25. h3 {[%emt 0:00:32]} Rf8 {[%emt 0:00:21]} 26. Rxf8 {[%emt 0:00:10]} Kxf8 {[%emt 0:00:03]} 27. Qc2 {[%emt 0:00:34]} Qc5+ {[%emt 0:00:09]} 28. Qf2+ {[%emt 0:00:09]} Qxf2+ {[%emt 0:00:03]} 29. Kxf2 {[%emt 0:00:03]} Ke7 {[%emt 0:00:02]} 30. Ke3 {[%emt 0:00:02]} Kf6 {[%emt 0:00:18]} 31. Kd4 {[%emt 0:00:21]} g5 {[%emt 0:00:33]} 32. g4 {[%emt 0:00:26]} h5 {[%emt 0:00:31]} 33. Be2 {[%emt 0:00:06]} h4 {[%emt 0:00:20]} 34. Bd3 {[%emt 0:00:41]} Bd7 {[%emt 0:01:23]} 35. Bc2 {[%emt 0:00:11]} Ke7 {[%emt 0:00:02]} 36. e5 {[%emt 0:00:42]} Bc6 {[%emt 0:00:04]} 37. exd6+ {[%emt 0:01:02]} Kxd6 {[%emt 0:00:05]} 38. Bd1 {[%emt 0:00:21]} Bg2 {[%emt 0:00:06]} 39. Ke3 {[%emt 0:00:02]} Ke5 {[%emt 0:00:09]} 40. Be2 {[%emt 0:00:18]} Bc6 {[%emt 0:00:39]} 41. Bd1 {[%emt 0:00:02]} Be4 {[%emt 0:00:02]} 42. Bb3 {[%emt 0:00:21]} Bg2 {[%emt 0:00:19]} 43. c5 {[%emt 0:00:15]} Bxh3 {[%emt 0:00:27]} 44. Kf3 {[%emt 0:00:17]} Bf1 {[%emt 0:00:06]} 45. cxb6 {[%emt 0:00:04]} cxb6 {[%emt 0:00:02]} 46. Bf7 {[%emt 0:00:16]} Bd3 {[%emt 0:00:14]} 47. Kg2 {[%emt 0:00:48]} Kf4 {[%emt 0:00:10]} 48. Be6 {[%emt 0:00:01]} Be2 {[%emt 0:00:31]} 49. Kh3 {[%emt 0:00:01]} Ke3 {[%emt 0:00:02]} 50. Bd5 {[%emt 0:00:57]} Kd2 {[%emt 0:00:07]} 51. c4 {[%emt 0:00:03]} Kc3 {[%emt 0:00:03]} 0-1

[Event "Szansa Chess Open 2022"]
[Site "Warsaw"]
[Date "2022.09.18"]
[Round "10.7"]
[White "Niezhentsev, Kyrylo"]
[Black "Kokoszczynski, Jan"]
[Result "1/2-1/2"]
[ECO "A20"]
[WhiteElo "2009"]
[BlackElo "2313"]
[Annotator "ChessBase"]
[PlyCount "112"]
[EventDate "2022.09.17"]
[EventCountry "POL"]
[SourceTitle "playchess.com"]
[Source "ChessBase"]
[SourceQuality "1"]
[TimeControl "900+10"]

1. c4 {[%emt 0:00:02]} e5 {[%emt 0:00:07]} 2. g3 {[%emt 0:00:02]} Nf6 {[%emt 0:00:02]} 3. Bg2 {[%emt 0:00:01]} Bc5 {[%emt 0:00:01]} 4. Nc3 {[%emt 0:00:05]} O-O {[%emt 0:00:16]} 5. e3 {[%emt 0:00:05]} d6 {[%emt 0:00:06]} 6. Nf3 {[%emt 0:00:10]} a6 {[%emt 0:00:13]} 7. O-O {[%emt 0:00:08]} Ba7 {[%emt 0:00:06]} 8. d4 {[%emt 0:00:02]} Nc6 {[%emt 0:00:25]} 9. d5 {[%emt 0:01:00]} Ne7 {[%emt 0:00:02]} 10. e4 {[%emt 0:00:11]} Ng6 {[%emt 0:00:26]} 11. Qe2 {[%emt 0:00:40]} c6 {[%emt 0:01:42]} 12. h3 {[%emt 0:00:38]} cxd5 {[%emt 0:00:11]} 13. cxd5 {[%emt 0:00:07]} b5 {[%emt 0:00:04]} 14. a3 {[%emt 0:00:12]} Nd7 {[%emt 0:01:17]} 15. Be3 {[%emt 0:00:22]} Bxe3 {[%emt 0:00:32]} 16. Qxe3 {[%emt 0:00:19]} Qb6 {[%emt 0:00:01]} 17. Qe2 {[%emt 0:01:57]} Bb7 {[%emt 0:01:01]} 18. Rac1 Rfc8 {[%emt 0:00:52]} 19. h4 {[%emt 0:01:11]} Nc5 {[%emt 0:00:14]} 20. Nd2 {[%emt 0:01:17]} Rc7 {[%emt 0:00:34]} 21. b4 {[%emt 0:01:22]} Nd7 {[%emt 0:00:09]} 22. Nb3 {[%emt 0:00:02]} Rac8 {[%emt 0:00:33]} 23. Na2 {[%emt 0:00:43]} Rxc1 {[%emt 0:00:14]} 24. Rxc1 {[%emt 0:00:02]} Rxc1+ {[%emt 0:00:01]} 25. Naxc1 {[%emt 0:00:02]} Qc7 {[%emt 0:00:01]} 26. Qd2 {[%emt 0:00:02]} Nb6 {[%emt 0:00:05]} 27. Na5 {[%emt 0:00:05]} Bc8 {[%emt 0:00:16]} 28. Na2 {[%emt 0:00:31]} Ne7 {[%emt 0:00:35]} 29. Qc3 {[%emt 0:00:18]} Qxc3 {[%emt 0:00:18]} 30. Nxc3 {[%emt 0:00:02]} g6 {[%emt 0:00:16]} 31. f3 {[%emt 0:00:22]} Bd7 {[%emt 0:01:25]} 32. Bf1 {[%emt 0:00:36]} Kf8 {[%emt 0:00:19]} 33. Kf2 {[%emt 0:00:02]} Ke8 {[%emt 0:00:45]} 34. Ke3 {[%emt 0:00:01]} f5 {[%emt 0:00:49]} 35. Be2 {[%emt 0:00:52]} fxe4 {[%emt 0:00:32]} 36. fxe4 {[%emt 0:00:05]} h5 {[%emt 0:00:28]} 37. Nb7 {[%emt 0:00:24]} Nec8 {[%emt 0:00:15]} 38. Na5 {[%emt 0:00:02]} Kd8 {[%emt 0:00:17]} 39. Nb3 {[%emt 0:01:00]} Ne7 {[%emt 0:00:08]} 40. Nd2 {[%emt 0:00:33]} Ng8 {[%emt 0:00:03]} 41. Nf3 {[%emt 0:00:37]} Nf6 {[%emt 0:00:24]} 42. Ng5 {[%emt 0:00:08]} Ke7 {[%emt 0:00:01]} 43. Kf2 {[%emt 0:00:36]} Bc8 {[%emt 0:00:34]} 44. Ke3 {[%emt 0:00:07]} Ng8 {[%emt 0:00:54]} 45. Kf2 {[%emt 0:00:07]} Nh6 {[%emt 0:00:01]} 46. Ke3 {[%emt 0:00:05]} Nf7 {[%emt 0:00:42]} 47. Nxf7 {[%emt 0:00:19]} Kxf7 {[%emt 0:00:01]} 48. Kf2 {[%emt 0:00:09]} Bd7 {[%emt 0:00:19]} 49. Ke3 {[%emt 0:00:02]} Ke7 {[%emt 0:00:01]} 50. Kf2 {[%emt 0:00:04]} Kd8 {[%emt 0:00:08]} 51. Ke3 {[%emt 0:00:07]} Kc7 {[%emt 0:00:01]} 52. Kd2 {[%emt 0:00:21]} Nc8 {[%emt 0:00:03]} 53. Nd1 {[%emt 0:00:15]} Kb6 {[%emt 0:00:09]} 54. Kc3 {[%emt 0:00:11]} Ne7 {[%emt 0:00:08]} 55. Nf2 {[%emt 0:00:16]} Ng8 {[%emt 0:00:15]} 56. Kd2 {[%emt 0:00:35]} Nf6 {[%emt 0:00:15]} 1/2-1/2

[Event "Szansa Chess Open 2022"]
[Site "Warsaw"]
[Date "2022.09.18"]
[Round "10.8"]
[White "Lapaj, Mateusz"]
[Black "Mulawa, Cyprian"]
[Result "0-1"]
[ECO "B34"]
[WhiteElo "2216"]
[BlackElo "2149"]
[Annotator "TA"]
[PlyCount "66"]
[EventDate "2022.09.17"]
[EventCountry "POL"]
[SourceTitle "playchess.com"]
[Source "ChessBase"]
[SourceQuality "1"]
[TimeControl "900+10"]

{[%evp 28,66,2,-7,72,66,69,26,28,33,32,12,33,-20,-27,-34,0,0,0,0,12,0,20,8,7,15,23,30,29,12,19,0,0,-235,0,-394,-366,-1465,-343,-29993,-29994]} 1. e4 {[%emt 0:00:02]} c5 {[%emt 0:00:01]} 2. Nc3 {[%emt 0:00:02]} Nc6 {[%emt 0:00:04]} 3. Nge2 {[%emt 0:00:02][%cal Bg1e2,Be2d4,Bd4b5][%mdl 32]} Nf6 {[%emt 0:00:10]} 4. d4 {[%emt 0:00:53]} cxd4 {[%emt 0:00:03]} 5. Nxd4 {[%emt 0:00:01]} e5 {[%emt 0:00:02]} 6. Ndb5 {[%emt 0:00:02]} d6 {[%emt 0:00:01]} 7. Nd5 {[%emt 0:00:01]} Nxd5 {[%emt 0:00:02]} 8. exd5 {[%emt 0:00:02]} Nb8 {[%emt 0:00:02]} 9. c4 {[%emt 0:00:08]} Be7 {[%emt 0:00:02]} 10. Bd3 {[%emt 0:00:25]} O-O {[%emt 0:00:06]} 11. O-O {[%emt 0:00:02]} a6 {[%emt 0:00:04]} 12. Nc3 {[%emt 0:00:02]} f5 {[%emt 0:00:04]} 13. f3 {[%emt 0:04:10][%cal Bf2f3,Bf3e4][%mdl 32]} Nd7 {[%emt 0:00:08] 13...Bg5 is not played anymore.} 14. Be3 {[%emt 0:00:12]} Bg5 {[%emt 0:01:01]} 15. Bf2 {[%emt 0:00:04]} e4 {[%emt 0:01:23] B33: Sicilian: Pelikan and Sveshnikov Variations.} (15... Qf6 $11 {remains equal.}) 16. fxe4 $16 {[%emt 0:00:07]} f4 {[%emt 0:00:01][%cal Of4f3]} 17. Bd4 {[%emt 0:00:53][%cal Oe4e5]} Bf6 {[%emt 0:00:49] Inhibits e5. White has an edge.} 18. Be2 {[%emt 0:00:24]} g5 {[%emt 0:00:41] [#]} 19. Bg4 $146 {[%emt 0:01:08]} ({Predecessor:} 19. Rc1 Qe7 20. b4 Qg7 21. Bxf6 Rxf6 22. c5 Ne5 23. Qd2 Bd7 24. Rf2 Raf8 25. Rcf1 {0-1 (54) Ribeiro,F-San Segundo Carrillo,P Gausdal 1986}) 19... Ne5 {[%emt 0:00:03]} 20. Bxc8 {[%emt 0:00:37]} (20. Be6+ $14 Kh8 21. b3) 20... Rxc8 $11 {[%emt 0:00:10]} 21. b3 {[%emt 0:00:13]} Qe8 {[%emt 0:00:39][%cal Of4f3][%mdl 1024] Black has compensation.} (21... f3 {keeps more tension.} 22. Rc1 g4 23. Rc2 h5) 22. Rc1 {[%emt 0:00:48]} Qg6 {[%emt 0:00:04][%cal Of4f3]} 23. Kh1 {[%emt 0:01:10]} h5 {[%emt 0:00:11]} 24. Qe2 {[%emt 0:01:37]} Bg7 {[%emt 0:01:31]} 25. Nb1 {[%emt 0:02:19]} g4 {[%emt 0:00:20] Threatens to win with ...f3.} 26. Nd2 {[%emt 0:00:11] Against f3} Rce8 {[%emt 0:01:10]} 27. c5 {[%emt 0:01:29]} dxc5 {[%emt 0:00:18]} 28. Bxc5 {[%emt 0:00:05]} ({Wrong is} 28. Rxc5 $2 f3 29. Qd1 (29. gxf3 $2 gxf3 30. Nxf3 Nxf3 $19) 29... fxg2+ 30. Kxg2 Nd3 $19) 28... Rf7 {[%emt 0:00:25]} 29. Rce1 {[%emt 0:00:27]} h4 {[%emt 0:00:34]} 30. Bd4 $2 {[%emt 0:00:31]} (30. h3 $1 $11) 30... h3 $2 {[%emt 0:01:30]} (30... f3 $1 $19 {[%cal Rf3e2]} 31. gxf3 gxf3 32. Nxf3 Nxf3 33. Rxf3 Rxf3 34. Qxf3 (34. Bxg7 $2 Rxe4 35. Qxe4 Rf1+ 36. Rxf1 Qxe4+ 37. Kg1 h3 $19) 34... Bxd4) 31. gxh3 $2 {[%emt 0:01:07][%mdl 8192]} (31. Bxe5 $11 {and White has nothing to worry.} Bxe5 32. gxh3) 31... f3 $19 {[%emt 0:00:08]} 32. Qd1 {[%emt 0:00:36]} (32. Qe3 Bh6 33. Qg1 (33. Qf2 $2 Nd3 $19) 33... Bxd2 34. Rd1) 32... Nd3 $2 {[%emt 0:00:18]} (32... g3 {( -> ...g2+)} 33. Rxf3 g2+ 34. Kg1 Nxf3+ 35. Nxf3 {[#]} Rxf3 $1 {[%mdl 512]} 36. Bxg7 Rxe4 37. Rxe4 Rf1+ 38. Qxf1 gxf1=Q+ 39. Kxf1 Qf5+ 40. Kg1 Qxe4) 33. Re3 $2 {[%emt 0:00:37] [#]} (33. e5 $19 Rf4 34. hxg4) 33... gxh3 $1 {[%emt 0:00:09] Weighted Error Value: White=1.16/Black=0.55} 0-1